fUST/lending_fUST_20250319
["ID","MTS","AMOUNT","RATE_DAILY","PERIOD"]
[356386124,1742367038659,-600.0,0.0001817,2]
[356386125,1742367038669,-500.0,0.0001817,2]
[356386126,1742367038679,-600.0,0.0001817,2]
[356386127,1742367038689,-258.87130042,0.0001817,2]
[356386158,1742367040581,-441.12869958,0.0001817,2]
[356386160,1742367040592,-382.20842623,0.0001817,2]
[356386163,1742367040604,-217.79157377,0.0001817,2]
[356386165,1742367040613,-600.0,0.0001817,2]
[356386166,1742367040623,-600.0,0.0001817,2]
[356386168,1742367040632,-600.0,0.0001817,2]
[356386170,1742367040642,-600.0,0.0001817,2]
[356386172,1742367040653,-600.0,0.0001817,2]
[356386174,1742367040663,-600.0,0.0001817,2]
[356386176,1742367040672,-600.0,0.0001817,2]
[356386178,1742367040683,-600.0,0.0001817,2]
[356386180,1742367040692,-156.11,0.000186,2]
[356386182,1742367040703,-500.0,0.00018745,2]
[356386184,1742367040713,-500.0,0.00018745,2]
[356386186,1742367040723,-500.0,0.00018745,2]
[356386188,1742367040733,-500.0,0.00018745,2]
[356386190,1742367040742,-630.94382167,0.00018745,2]
[356386192,1742367040752,-500.0,0.00018745,2]
[356386194,1742367040762,-500.0,0.00018863,2]
[356386196,1742367040772,-500.0,0.000189,2]
[356386198,1742367040781,-7408.07880548,0.000189,2]
[356386200,1742367040793,-761.31072782,0.000189,2]
[356386202,1742367040807,-500.0,0.00018911,2]
[356386204,1742367040817,-500.0,0.00018911,2]
[356386206,1742367040826,-222.33574533,0.00018999,2]
[356386208,1742367040836,-6318.39376502,0.00019,3]
[356386457,1742367043491,-5349.51283289,0.00019,3]
[356386589,1742368238315,-174.570449,0.00010959,2]
[356386591,1742368238326,-300.0,0.000149,5]
[356386593,1742368238335,-3877.8336259,0.000153,2]
[356386594,1742368238345,-160.0,0.00015729,2]
[356386596,1742368238355,-300.0,0.00015843,2]
[356386598,1742368238364,-541.0,0.00015844,2]
[356386600,1742368238373,-150.71,0.00015844,2]
[356386602,1742368238383,-2267.0,0.00015844,2]
[356386604,1742368238392,-1915.0,0.00015844,2]
[356386606,1742368238402,-150.0,0.00016,2]
[356386608,1742368238412,-724.1329575,0.00016101,2]
[356386610,1742368238421,-585.7470068,0.00016399,2]
[356386612,1742368238430,-402.12306192,0.00016399,2]
[356386614,1742368238440,-500.0,0.00016399,2]
[356386616,1742368238450,-300.0,0.000164,6]
[356386618,1742368238459,-1000.0,0.00016438,7]
[356386621,1742368238469,-1000.0,0.00016673,7]
[356386623,1742368238479,-7897.07654905,0.000169,2]
[356386625,1742368238489,-1000.0,0.00016947,7]
[356386627,1742368238499,-1000.0,0.00017221,7]
[356386629,1742368238508,-160.14466429,0.00017286,2]
[356386631,1742368238518,-500.0,0.00017286,2]
[356386633,1742368238527,-474.13663736,0.00017286,2]
[356386634,1742368238536,-501.18895121,0.00017286,2]
[356386635,1742368238546,-502.69008836,0.00017286,2]
[356386636,1742368238556,-500.0,0.00017286,2]
[356386637,1742368238565,-500.0,0.00017286,2]
[356386638,1742368238575,-500.0,0.00017286,2]
[356386639,1742368238584,-500.59379475,0.00017286,2]
[356386640,1742368238595,-501.34846324,0.00017286,2]
[356386641,1742368238605,-500.0,0.00017286,2]
[356386642,1742368238614,-344.75728099,0.00017286,2]
[356386643,1742368238624,-502.10930118,0.00017286,2]
[356386644,1742368238634,-500.54965459,0.00017286,2]
[356386645,1742368238643,-166.475692,0.00017286,2]
[356386646,1742368238653,-417.98352203,0.00017286,2]
[356386647,1742368238663,-291.60732391,0.00017286,2]
[356386648,1742368238673,-500.0,0.00017286,2]
[356386649,1742368238682,-501.7335287,0.00017286,2]
[356386650,1742368238692,-503.72765559,0.00017286,2]
[356386651,1742368238702,-507.75423214,0.00017286,2]
[356386652,1742368238712,-501.07675755,0.00017286,2]
[356386653,1742368238722,-503.70546588,0.00017286,2]
[356386654,1742368238735,-500.76482581,0.00017286,2]
[356386655,1742368238748,-500.0,0.00017286,2]
[356386656,1742368238758,-500.0,0.00017286,2]
[356386657,1742368238768,-269.70722215,0.00017286,2]
[356386658,1742368238777,-500.0,0.00017286,2]
[356386659,1742368238787,-211.04624305,0.00017286,2]
[356386660,1742368238797,-155.90585543,0.00017286,2]
[356386661,1742368238807,-500.86613158,0.00017286,2]
[356386662,1742368238816,-176.97034193,0.00017286,2]
[356386663,1742368238826,-500.49796987,0.00017286,2]
[356386664,1742368238836,-267.52387835,0.00017286,2]
[356386665,1742368238846,-500.90861967,0.00017286,2]
[356386666,1742368238856,-252.51410759,0.00017286,2]
[356386667,1742368238866,-500.85158568,0.00017286,2]
[356386668,1742368238876,-420.0,0.00017325,2]
[356386669,1742368238885,-215.83379702,0.00017453,2]
[356386670,1742368238894,-10000.0,0.00017454,2]
[356386671,1742368238903,-1000.0,0.00017495,7]
[356386672,1742368238912,-160.0,0.0001774,2]
[356386673,1742368238921,-160.0,0.00017765,2]
[356386674,1742368238931,-417.89091067,0.00017765,2]
[356386675,1742368238941,-1000.0,0.00017769,7]
[356386676,1742368238951,-833.92477148,0.00017788,2]
[356386677,1742368238961,-295.12579542,0.00017788,2]
[356386678,1742368238971,-1000.18372396,0.00017882,2]
[356386679,1742368238981,-7897.0765488,0.000179,2]
[356386680,1742368238992,-300.0,0.000179,7]
[356386681,1742368239002,-1000.0,0.00018043,7]
[356386682,1742368239016,-500.0,0.00018169,2]
[356386683,1742368239026,-500.0,0.00018169,2]
[356386684,1742368239036,-157.64435778,0.00018258,2]
[356386685,1742368239048,-563.38263582,0.00018258,2]
[356386686,1742368239059,-501.87489179,0.00018258,2]
[356386687,1742368239069,-159.71086226,0.00018258,2]
[356386688,1742368239079,-500.0,0.00018258,2]
[356386689,1742368239297,-500.93100509,0.00018258,2]
[356386690,1742368239321,-154.25284453,0.00018258,2]
[356386691,1742368239331,-153.16243798,0.00018258,2]
[356386692,1742368239342,-199.2346633,0.00018258,2]
[356386693,1742368239352,-163.50059408,0.00018258,2]
[356386694,1742368239362,-500.0,0.00018258,2]
[356386695,1742368239372,-160.54362015,0.00018258,2]
[356386696,1742368239382,-269.08915306,0.00018258,2]
[356386697,1742368239393,-504.93805266,0.00018258,2]
[356386698,1742368239402,-537.06520635,0.00018258,2]
[356386699,1742368239412,-503.37597354,0.00018258,2]
[356386700,1742368239422,-500.0,0.00018258,2]
[356386701,1742368239431,-501.00191619,0.00018258,2]
[356386702,1742368239441,-500.0,0.00018258,2]
[356386703,1742368239451,-201.81406489,0.00018317,7]
[356386767,1742368243616,-798.18593511,0.00018317,7]
[356386768,1742368243626,-262.34954387,0.00018591,2]
[356386769,1742368243636,-1000.0,0.00018591,7]
[356386770,1742368243645,-500.0,0.00018667,2]
[356386771,1742368243655,-810.74292333,0.00018862,2]
[356386772,1742368243664,-1000.0,0.00018865,7]
[356386773,1742368243674,-151.0,0.00018889,2]
[356386774,1742368243683,-889.445145,0.00018898,2]
[356386775,1742368243693,-223.37414822,0.00018899,2]
[356386776,1742368243702,-3000.0,0.000189,2]
[356386777,1742368243711,-7897.0765488,0.000189,2]
[356386778,1742368243721,-500.0,0.00018905,2]
[356386779,1742368243731,-901.81,0.00018998,2]
[356386780,1742368243740,-500.0,0.00018999,2]
[356386781,1742368243750,-901.81,0.00018999,2]
[356386782,1742368243760,-19684.59364139,0.00019,3]
[356386783,1742368243769,-833.92477148,0.00019,3]
[356386784,1742368243780,-586.45560513,0.00019139,7]
[356386785,1742368243790,-154.772,0.00019152,2]
[356386786,1742368243800,-300.0,0.00019178,2]
[356386787,1742368243809,-300.0,0.00019178,2]
[356386788,1742368243820,-280.01350331,0.00019178,2]
[356386789,1742368243830,-901.81,0.00019399,120]
[356386790,1742368243840,-300.0,0.000194,8]
[356386791,1742368243850,-156.587,0.00019437,2]
[356386792,1742368243859,-1152.5726683,0.00019546,2]
[356386793,1742368243869,-222000.0,0.0001963,2]
[356386794,1742368243879,-331.88864984,0.00019673,2]
[356386795,1742368243888,-500.0,0.00019673,2]
[356386796,1742368243898,-520.27856864,0.00019673,2]
[356386797,1742368243908,-500.0,0.00019673,2]
[356386798,1742368243918,-500.0,0.00019673,2]
[356386799,1742368243928,-500.51693313,0.00019673,2]
[356386800,1742368243938,-500.58783416,0.00019673,2]
[356386801,1742368243947,-502.02655416,0.00019673,2]
[356386802,1742368243958,-206.32277583,0.00019673,2]
[356386803,1742368243968,-500.87404325,0.00019673,2]
[356386804,1742368243978,-304.81225306,0.00019673,2]
[356386805,1742368243987,-500.0,0.00019673,2]
[356386806,1742368243999,-500.89679277,0.00019673,2]
[356386807,1742368244015,-500.0,0.00019673,2]
[356386808,1742368244026,-500.0,0.00019673,2]
[356386809,1742368244036,-500.0,0.00019673,2]
[356386810,1742368244046,-500.0,0.00019673,2]
[356386811,1742368244055,-500.0,0.00019673,2]
[356386812,1742368244068,-500.0,0.00019673,2]
[356386813,1742368244077,-221.02515951,0.00019673,2]
[356386814,1742368244087,-500.0,0.00019673,2]
[356386815,1742368244099,-500.0,0.00019673,2]
[356386816,1742368244109,-500.0,0.00019673,2]
[356386817,1742368244118,-500.0,0.00019673,2]
[356386818,1742368244129,-500.0,0.00019673,2]
[356386819,1742368244139,-348.03042703,0.00019673,2]
[356386820,1742368244149,-500.0,0.00019673,2]
[356386821,1742368244159,-519.4402032,0.00019673,2]
[356386822,1742368244169,-500.0,0.00019673,2]
[356386823,1742368244181,-500.0,0.00019673,2]
[356386824,1742368244190,-500.0,0.00019673,2]
[356386825,1742368244200,-500.0,0.00019673,2]
[356386826,1742368244209,-500.0,0.00019673,2]
[356386827,1742368244219,-230.71333187,0.00019673,2]
[356386828,1742368244228,-500.0,0.00019673,2]
[356386829,1742368244238,-603.77225207,0.00019673,2]
[356386830,1742368244247,-500.0,0.00019673,2]
[356386831,1742368244257,-901.81,0.00019729,120]
[356386832,1742368244267,-901.81,0.00019729,120]
[356386833,1742368244276,-901.81,0.00019729,120]
[356386834,1742368244286,-901.81,0.00019729,120]
[356386835,1742368244295,-901.81,0.00019729,120]
[356386836,1742368244305,-901.81,0.00019729,120]
[356386837,1742368244315,-901.81,0.00019729,120]
[356386838,1742368244324,-901.81,0.00019729,120]
[356386839,1742368244334,-901.81,0.00019729,120]
[356386840,1742368244344,-901.81,0.00019729,120]
[356386841,1742368244353,-901.81,0.00019729,120]
[356386842,1742368244363,-901.81,0.00019729,120]
[356386843,1742368244372,-901.81,0.00019729,120]
[356386844,1742368244382,-901.81,0.00019729,120]
[356386845,1742368244392,-901.81,0.00019729,120]
[356386846,1742368244401,-901.81,0.00019729,120]
[356386847,1742368244411,-901.81,0.00019729,120]
[356386848,1742368244420,-901.81,0.00019729,120]
[356386849,1742368244430,-901.81,0.00019729,120]
[356386850,1742368244440,-901.81,0.00019729,120]
[356386851,1742368244449,-901.81,0.00019729,120]
[356386852,1742368244459,-1000.492888,0.0001973,2]
[356386853,1742368244468,-424928.62,0.0001973,2]
[356386854,1742368244478,-261.20774157,0.0001973,120]
[356386855,1742368244487,-501.86296405,0.00019773,2]
[356386856,1742368244497,-425.52233253,0.00019773,2]
[356386857,1742368244507,-501.2680578,0.00019773,2]
[356386858,1742368244516,-500.0,0.00019773,2]
[356386859,1742368244525,-500.0,0.00019773,2]
[356386860,1742368244535,-163.21489491,0.00019773,2]
[356386861,1742368244544,-500.0,0.00019773,2]
[356386862,1742368244554,-500.0,0.00019773,2]
[356386863,1742368244563,-500.0,0.00019773,2]
[356386864,1742368244573,-549.41387189,0.00019773,2]
[356386865,1742368244582,-500.0,0.00019773,2]
[356386866,1742368244592,-7897.0765488,0.000199,2]
[356386867,1742368244602,-162.380719,0.00019985,2]
[356386868,1742368244611,-1000.0,0.0002,7]
[356386869,1742368244621,-150.0,0.0002,2]
[356386870,1742368244630,-1000.0,0.0002,5]
[356386871,1742368244639,-250.0,0.0002,30]
[356386872,1742368244649,-2000.0,0.0002,4]
[356386873,1742368244659,-160.0,0.0002,3]
[356386874,1742368244668,-160.0,0.0002,7]
[356386875,1742368244678,-160.0,0.0002,3]
[356386876,1742368244688,-833.92477148,0.00020193,7]
[356386877,1742368244698,-168.3888056,0.00020533,2]
[356386878,1742368244707,-300.0,0.000209,9]
[356386879,1742368244717,-7897.0765488,0.000209,2]
[356386880,1742368244727,-3000.0,0.00021,2]
[356386881,1742368244736,-242.08,0.00021,2]
[356386882,1742368244746,-2000.0,0.00021,4]
[356386883,1742368244755,-3000.0,0.0002101,2]
[356386884,1742368244765,-3000.0,0.0002102,2]
[356386885,1742368244775,-3000.0,0.0002103,2]
[356386886,1742368244785,-3000.0,0.0002104,2]
[356386887,1742368244795,-3000.0,0.0002105,2]
[356386888,1742368244805,-3000.0,0.0002106,2]
[356386889,1742368244815,-3000.0,0.0002107,2]
[356386890,1742368244825,-3000.0,0.0002108,2]
[356386891,1742368244834,-174.61919141,0.00021081,2]
[356386892,1742368244844,-3000.0,0.0002109,2]
[356386893,1742368244854,-3000.0,0.000211,2]
[356386894,1742368244863,-3000.0,0.0002111,2]
[356386895,1742368244873,-3000.0,0.0002112,2]
[356386896,1742368244884,-3000.0,0.0002113,2]
[356386897,1742368244894,-3000.0,0.0002114,2]
[356386898,1742368244903,-3000.0,0.0002115,2]
[356386899,1742368244913,-3000.0,0.0002116,2]
[356386900,1742368244923,-3000.0,0.0002117,2]
[356386901,1742368244933,-3000.0,0.0002118,2]
[356386902,1742368244943,-3000.0,0.0002119,2]
[356386903,1742368244953,-3000.0,0.000212,2]
[356386904,1742368244962,-3000.0,0.0002121,2]
[356386905,1742368244972,-3000.0,0.0002122,2]
[356386906,1742368244983,-3000.0,0.0002123,2]
[356386907,1742368244993,-3000.0,0.0002124,2]
[356386908,1742368245003,-3000.0,0.0002125,2]
[356386909,1742368245015,-3000.0,0.0002126,2]
[356386910,1742368245026,-3000.0,0.0002127,2]
[356386911,1742368245035,-3000.0,0.0002128,2]
[356386912,1742368245045,-3000.0,0.0002129,2]
[356386913,1742368245056,-3000.0,0.000213,2]
[356386914,1742368245066,-500.0,0.00021308,2]
[356386915,1742368245076,-500.0,0.00021408,2]
[356386916,1742368245087,-500.0,0.00021457,2]
[356386917,1742368245096,-500.0,0.00021457,2]
[356386918,1742368245106,-279.11668251,0.0002146,2]
[356386919,1742368245115,-150.0,0.00021555,2]
[356386920,1742368245290,-181.08010149,0.00021629,2]
[356386921,1742368245300,-258.7115,0.00021884,15]
[356386922,1742368245309,-7897.0765488,0.000219,3]
[356386923,1742368245320,-1000.0,0.00021917,4]
[356386924,1742368245330,-1000.0,0.00021917,4]
[356386925,1742368245339,-1000.0,0.00021917,4]
[356386926,1742368245349,-1000.0,0.00021917,4]
[356386927,1742368245359,-1000.0,0.00021917,4]
[356386928,1742368245368,-1000.0,0.00021917,4]
[356386929,1742368245377,-191.18279283,0.00021917,4]
[356386930,1742368245387,-1294.0612443,0.00021918,7]
[356386931,1742368245396,-214.13160014,0.00021918,2]
[356386932,1742368245406,-244.0,0.00022,2]
[356386933,1742368245415,-154.0,0.00022,2]
[356386934,1742368245424,-2000.0,0.00022,4]
[356386935,1742368245434,-382.0,0.00022,2]
[356386936,1742368245443,-250.0,0.00022102,2]
[356386937,1742368245452,-187.78006525,0.00022177,2]
[356386938,1742368245462,-382.0,0.00022192,2]
[356386939,1742368245471,-300.0,0.000224,10]
[356386940,1742368245481,-350.0,0.0002265,2]
[356386941,1742368245491,-194.72792766,0.00022725,2]
[356386942,1742368245500,-1000.0,0.00022765,2]
[356386943,1742368245510,-1000.0,0.00022765,2]
[356386944,1742368245519,-1000.0,0.00022765,2]
[356386945,1742368245529,-1000.0,0.00022765,2]
[356386946,1742368245539,-1000.0,0.00022765,2]
[356386947,1742368245548,-447.95004427,0.00022765,2]
[356386948,1742368245558,-1000.0,0.00022765,2]
[356386949,1742368245567,-1000.0,0.00022765,2]
[356386950,1742368245576,-1000.0,0.00022765,2]
[356386951,1742368245586,-2471.29,0.000228,7]
[356386952,1742368245595,-7897.0765488,0.000229,3]
[356386953,1742368245605,-685.598743,0.00023,2]
[356386954,1742368245614,-417.89091067,0.00023,3]
[356386955,1742368245624,-160.0,0.00023,3]
[356386956,1742368245633,-2000.0,0.00023,4]
[356386957,1742368245643,-382.0,0.00023014,2]
[356386958,1742368245652,-450.0,0.00023198,2]
[356386959,1742368245662,-201.93286099,0.00023273,2]
[356386960,1742368245671,-500.0,0.000235,2]
[356386961,1742368245681,-1000.0,0.00023738,2]
[356386962,1742368245691,-1000.0,0.00023738,2]
[356386963,1742368245700,-1000.0,0.00023738,2]
[356386964,1742368245709,-550.0,0.00023746,2]
[356386965,1742368245719,-309.65648719,0.00023821,2]
[356386966,1742368245728,-373.094961,0.000239,11]
[356386967,1742368245737,-7897.0765488,0.000239,3]
[356386968,1742368245747,-2000.0,0.00024,4]
[356386969,1742368245756,-500.0,0.00024,2]
[356386970,1742368245766,-417.89091067,0.00024,7]
[356386971,1742368245775,-160.0,0.00024,7]
[356386972,1742368245785,-164.8844338,0.00024152,2]
[356386973,1742368245794,-384.0,0.00024164,2]
[356386974,1742368245804,-650.0,0.00024294,2]
[356386975,1742368245814,-500.0,0.000245,2]
[356386976,1742368245823,-239.65414924,0.00024552,2]
[356386977,1742368245833,-380.0,0.00024658,2]
[356386978,1742368245843,-200.0,0.00024658,2]
[356386979,1742368245854,-232.7806917,0.00024658,2]
[356386980,1742368245865,-151.0,0.000248,7]
[356386981,1742368245875,-344.849205,0.000248,7]
[356386982,1742368245884,-344.849205,0.000248,7]
[356386983,1742368245894,-373.643472,0.000248,7]
[356386984,1742368245904,-373.643472,0.000248,7]
[356386985,1742368245913,-750.0,0.00024842,2]
[356386986,1742368245923,-156.584287,0.000249,7]
[356386987,1742368245933,-151.0,0.000249,7]
[356386988,1742368245942,-151.0,0.000249,7]
[356386989,1742368245951,-164.560011,0.000249,7]
[356386990,1742368245960,-168.961264,0.000249,7]
[356386991,1742368245970,-401734.31016175,0.000249,2]
[356386992,1742368246699,-490.66197027,0.00021884,15]
[356386993,1742368246786,-22.83802973,0.00021884,15]
[356386994,1742368246795,-34987.97116099,0.000249,2]
[356386995,1742368246807,-10925.3721529,0.000249,2]
[356386997,1742369148128,-175.668414,0.00010959,2]
[356386998,1742369148151,-611.25507097,0.00016875,2]
[356386999,1742369148173,-541.0,0.00016974,2]
[356387000,1742369148195,-150.0,0.00016974,2]
[356387001,1742369148216,-92.33510071,0.00016974,2]
[356387003,1742369207085,-177.10636203,0.00016973,2]
[356387055,1742369432874,-633.90056995,0.00014729,2]
[356387057,1742369432884,-1319.50275511,0.00014878,2]
[356387059,1742369432894,-54.33428229,0.00015705,2]
[356387070,1742369432993,-445.66571771,0.00015705,2]
[356387072,1742369433003,-287.76997615,0.00015705,2]
[356387074,1742369433013,-20727.77948505,0.00015706,120]
[356387076,1742369433024,-2083.09525858,0.000169,2]
[356387080,1742369433054,-606.84252089,0.000169,2]
[356387189,1742369438544,-2692.7137372,0.000169,2]
[356387190,1742369438656,-408.53795245,0.000169,2]
[356387191,1742369438666,-1821.66489929,0.00016974,2]
[356387192,1742369438676,-2267.0,0.00016974,2]
[356387193,1742369438685,-399.0,0.00016974,2]
[356387194,1742369438695,-4673.5244973,0.00017124,2]
[356387195,1742369438705,-160.0,0.00017784,2]
[356387196,1742369438715,-417.89091067,0.00017806,2]
[356387197,1742369438725,-20000.0,0.00017806,2]
[356387198,1742369438735,-5791.18946912,0.000179,2]
[356387199,1742369438745,-3259.17117876,0.0001807,2]
[356387200,1742369438754,-600.0,0.00018159,2]
[356387201,1742369438764,-520.84735794,0.00018167,2]
[356387202,1742369438773,-141.05917346,0.00018168,2]
[356387203,1742369440894,-358.94082654,0.00018168,2]
[356387204,1742369440906,-485.0,0.00018169,2]
[356387205,1742369440916,-105.81153483,0.00018169,2]
[356387206,1742369440929,-394.18846517,0.00018169,2]
[356387207,1742369440939,-500.0,0.00018169,2]
[356387208,1742369440950,-303.96959489,0.00018169,2]
[356387209,1742369440960,-500.0,0.0001817,2]
[356387210,1742369440969,-500.0,0.0001817,2]
[356387211,1742369440980,-500.0,0.0001817,2]
[356387212,1742369440990,-900.0,0.0001817,2]
[356387213,1742369441000,-900.0,0.0001817,2]
[356387214,1742369441010,-900.0,0.0001817,2]
[356387215,1742369441020,-160.50191192,0.0001817,2]
[356387216,1742369441033,-739.49808808,0.0001817,2]
[356387217,1742369441043,-900.0,0.0001817,2]
[356387219,1742369441053,-900.0,0.0001817,2]
[356387221,1742369441063,-900.0,0.0001817,2]
[356387223,1742369441072,-500.0,0.0001817,2]
[356387225,1742369441082,-900.0,0.0001817,2]
[356387226,1742369441092,-500.0,0.0001817,2]
[356387228,1742369441102,-900.0,0.0001817,2]
[356387229,1742369441113,-500.0,0.0001817,2]
[356387230,1742369441123,-500.0,0.0001817,2]
[356387231,1742369441134,-900.0,0.0001817,2]
[356387232,1742369441144,-500.0,0.0001817,2]
[356387233,1742369441155,-900.0,0.0001817,2]
[356387234,1742369441165,-500.0,0.0001817,2]
[356387235,1742369441176,-900.0,0.0001817,2]
[356387236,1742369441186,-500.0,0.0001817,2]
[356387237,1742369441198,-900.0,0.0001817,2]
[356387238,1742369441207,-500.0,0.0001817,2]
[356387239,1742369441217,-1200.0,0.0001817,2]
[356387240,1742369441227,-500.0,0.0001817,2]
[356387241,1742369441237,-500.0,0.0001817,2]
[356387242,1742369441247,-500.0,0.0001817,2]
[356387243,1742369441256,-800.0,0.0001817,2]
[356387244,1742369441267,-500.0,0.0001817,2]
[356387245,1742369441277,-500.0,0.00018173,2]
[356387246,1742369441287,-501.07798597,0.00018173,2]
[356387247,1742369441297,-500.0,0.00018173,2]
[356387248,1742369441308,-636.22991115,0.00018173,2]
[356387249,1742369441318,-500.0,0.00018173,2]
[356387250,1742369441328,-500.0,0.00018173,2]
[356387251,1742369441338,-500.0,0.00018173,2]
[356387252,1742369441348,-500.0,0.00018173,2]
[356387253,1742369441358,-500.0,0.00018173,2]
[356387254,1742369441368,-509.69094211,0.00018173,2]
[356387255,1742369441378,-500.0,0.00018173,2]
[356387256,1742369441391,-500.0,0.00018173,2]
[356387257,1742369441401,-622.2,0.00018214,2]
[356387258,1742369441411,-645.2214,0.00018269,2]
[356387259,1742369441420,-669.0945918,0.00018324,2]
[356387260,1742369441431,-866.33232367,0.00018379,2]
[356387261,1742369441440,-500.0,0.00018442,2]
[356387262,1742369441450,-500.0,0.00018511,2]
[356387263,1742369441461,-156.11,0.000186,2]
[356387264,1742369441471,-500.0,0.00018716,2]
[356387265,1742369441482,-500.0,0.00018832,2]
[356387266,1742369441492,-505.26242236,0.00018832,2]
[356387267,1742369441505,-500.0,0.00018832,2]
[356387268,1742369441515,-599.67593139,0.00018832,2]
[356387269,1742369441526,-422.62954474,0.00018832,2]
[356387270,1742369441536,-552.64773924,0.00018832,2]
[356387271,1742369441546,-500.0,0.00018832,2]
[356387272,1742369441556,-500.0,0.00018832,2]
[356387273,1742369441566,-5791.18946912,0.000189,2]
[356387274,1742369441576,-529.28688921,0.0001899,2]
[356387275,1742369441586,-833.92477148,0.00019075,2]
[356387276,1742369441596,-160.0,0.00019075,2]
[356387277,1742369441606,-189.010941,0.00019356,2]
[356387278,1742369441616,-3000.0,0.0001943,2]
[356387279,1742369441626,-484.39662936,0.00019457,2]
[356387280,1742369441635,-1152.57266829,0.00019473,2]
[356387281,1742369441645,-272.52131296,0.00019518,2]
[356387282,1742369441655,-500.0,0.00019529,120]
[356387283,1742369441666,-500.0,0.00019529,120]
[356387284,1742369441675,-500.0,0.00019529,120]
[356387285,1742369441686,-500.0,0.00019529,120]
[356387286,1742369441696,-500.0,0.00019529,120]
[356387287,1742369441706,-500.0,0.00019529,120]
[356387288,1742369441716,-500.0,0.00019529,120]
[356387289,1742369441727,-500.0,0.00019529,120]
[356387290,1742369441736,-500.0,0.00019529,120]
[356387291,1742369441746,-500.0,0.00019529,120]
[356387292,1742369441756,-500.0,0.00019529,120]
[356387293,1742369441766,-172561.42643807,0.0001953,2]
[356387312,1742369443672,-986.35071856,0.0001953,2]
[356387313,1742369443701,-738.95004463,0.0001953,2]
[356387315,1742369443901,-628.41539121,0.0001953,2]
[356387317,1742369443913,-378.05573682,0.0001953,2]
[356387319,1742369443925,-1085.07349445,0.0001953,2]
[356387322,1742369443939,-45621.72817626,0.0001953,2]
[356387324,1742369443948,-500.0,0.00019573,2]
[356387326,1742369443958,-500.0,0.00019573,2]
[356387328,1742369443967,-500.0,0.00019573,2]
[356387330,1742369443977,-500.0,0.00019573,2]
[356387332,1742369443986,-500.0,0.00019573,2]
[356387334,1742369443996,-500.0,0.00019573,2]
[356387336,1742369444005,-500.0,0.00019573,2]
[356387338,1742369444015,-500.0,0.00019573,2]
[356387340,1742369444025,-500.0,0.00019573,2]
[356387342,1742369444034,-500.0,0.00019573,2]
[356387344,1742369444043,-500.0,0.00019573,2]
[356387346,1742369444053,-500.0,0.00019573,2]
[356387348,1742369444063,-500.0,0.00019573,2]
[356387350,1742369444072,-542.50611741,0.00019573,2]
[356387352,1742369444081,-5791.18946912,0.000199,2]
[356387354,1742369444090,-150.0,0.0002,30]
[356387356,1742369444100,-1554.32281282,0.0002,120]
[356387358,1742369444110,-188.0,0.0002,120]
[356387360,1742369444119,-989.2246388,0.0002,120]
[356387362,1742369444128,-151.19763648,0.0002,2]
[356387364,1742369444138,-273.3011679,0.0002045,30]
[356387366,1742369444147,-189.01094098,0.00020717,2]
[356387368,1742369444157,-500.0,0.00020796,120]
[356387369,1742369444167,-5791.18946912,0.000209,2]
[356387370,1742369444176,-10000.0,0.00021,5]
[356387371,1742369444186,-265.13898611,0.00021,2]
[356387372,1742369444196,-155.108,0.0002117,2]